bitfinex/quotes_BTCUSD_20250226
["timestamp","ask_amount","ask_price","bid_price","bid_amount"]
[1740610219524,0.176613,84931.0,84930.0,0.02238765]
[1740610219525,0.177613,84931.0,84930.0,0.02238765]
[1740610220109,0.178613,84931.0,84930.0,0.02938765]
[1740610220506,0.177613,84931.0,84930.0,0.02238765]
[1740610220834,0.178613,84931.0,84930.0,0.02238765]
[1740610220996,0.177613,84931.0,84930.0,0.02238765]
[1740610221199,0.178613,84931.0,84930.0,0.02938765]
[1740610221991,0.177613,84931.0,84930.0,0.02238765]
[1740610222567,0.176613,84931.0,84930.0,0.01538765]
[1740610222901,0.177613,84931.0,84930.0,0.02238765]
[1740610224047,0.177613,84931.0,84930.0,0.01838765]
[1740610224607,0.178613,84931.0,84930.0,0.02038765]
[1740610225377,0.178613,84931.0,84930.0,0.0058468]
[1740610226150,0.002,84931.0,84930.0,0.02038765]
[1740610227254,0.0177473,84932.0,84930.0,0.01538765]
[1740610227497,0.001,84931.0,84930.0,0.09688765]
[1740610227711,0.001,84931.0,84930.0,0.02138765]
[1740610228335,0.19586473,84935.0,84930.0,0.02838765]
[1740610228642,0.0204225,84992.0,84930.0,0.02238765]
[1740610228779,0.00273074,84934.0,84930.0,0.02238765]
[1740610228981,0.001,84931.0,84930.0,0.02938765]
[1740610229237,0.177613,84931.0,84930.0,0.04106765]
[1740610229440,0.177613,84931.0,84930.0,0.04806765]
[1740610229799,0.176613,84931.0,84930.0,0.03406765]
[1740610230022,0.176613,84931.0,84930.0,0.03360006]
[1740610230431,0.176613,84931.0,84930.0,0.04060006]
[1740610230968,0.176613,84931.0,84930.0,0.03360006]
[1740610231475,0.176613,84931.0,84930.0,0.04060006]
[1740610231819,0.176613,84931.0,84930.0,0.03360006]
[1740610232043,0.176613,84931.0,84930.0,0.04060006]
[1740610232277,0.176613,84931.0,84930.0,0.03360006]
[1740610232474,0.1877752,84931.0,84930.0,0.03360006]
[1740610232677,0.1877752,84931.0,84930.0,0.04060006]
[1740610233188,0.1877752,84931.0,84930.0,0.03406765]
[1740610233329,0.1877752,84931.0,84930.0,0.01538765]
[1740610233549,0.1877752,84931.0,84930.0,0.02706765]
[1740610233764,0.1877752,84931.0,84930.0,0.04106765]
[1740610233961,0.1877752,84931.0,84930.0,0.03406765]
[1740610234206,0.1877752,84931.0,84930.0,0.02706765]
[1740610234582,0.1877752,84931.0,84930.0,0.03406765]
[1740610235523,0.1877752,84931.0,84930.0,0.04106765]
[1740610236360,0.1877752,84931.0,84930.0,0.03406765]
[1740610236542,0.1877752,84931.0,84930.0,0.04106765]
[1740610236685,0.1877752,84931.0,84930.0,0.03406765]
[1740610237355,0.1877752,84931.0,84930.0,0.04106765]
[1740610237935,0.1877752,84931.0,84930.0,0.04102765]
[1740610239483,0.1877752,84931.0,84930.0,0.03402765]
[1740610239717,0.1887752,84931.0,84930.0,0.04102765]
[1740610240128,0.0121622,84931.0,84930.0,0.04102765]
[1740610240251,0.1887752,84931.0,84930.0,0.04102765]
[1740610240858,0.1887752,84931.0,84930.0,0.03402765]
[1740610241259,0.1897752,84931.0,84930.0,0.04102765]
[1740610241683,0.1887752,84931.0,84930.0,0.03402765]
[1740610241923,0.0121622,84931.0,84930.0,0.03402765]
[1740610242124,0.1907752,84931.0,84930.0,0.04802765]
[1740610242358,0.0141622,84931.0,84930.0,0.04802765]
[1740610242590,0.1907752,84931.0,84930.0,0.04802765]
[1740610245578,0.0141622,84931.0,84930.0,0.04802765]
[1740610246015,0.1907752,84931.0,84930.0,0.04802765]
[1740610247075,0.0141622,84931.0,84930.0,0.04802765]
[1740610247236,0.0141622,84931.0,84930.0,0.08493403]
[1740610248503,0.0111622,84931.0,84930.0,0.02702765]
[1740610248791,0.0121622,84931.0,84930.0,0.04102765]
[1740610250277,0.0121622,84931.0,84930.0,0.02938765]
[1740610250481,0.1887752,84931.0,84930.0,0.02938765]
[1740610250688,0.0121622,84931.0,84930.0,0.02938765]
[1740610251061,0.1887752,84931.0,84930.0,0.02938765]
[1740610251473,0.1887752,84931.0,84930.0,0.02238765]
[1740610252196,0.1897752,84931.0,84930.0,0.02938765]
[1740610252509,0.1887752,84931.0,84930.0,0.01538765]
[1740610252899,0.1897752,84931.0,84930.0,0.02238765]
[1740610253327,0.1897752,84931.0,84930.0,0.02938765]
[1740610253586,0.1907752,84931.0,84930.0,0.02938765]
[1740610253902,0.1907752,84931.0,84930.0,0.03588102]
[1740610254847,0.1877752,84931.0,84930.0,0.02188102]
[1740610255047,0.1887752,84931.0,84930.0,0.02888102]
[1740610255271,0.1897752,84931.0,84930.0,0.03588102]
[1740610255585,0.1897752,84931.0,84930.0,0.02888102]
[1740610255933,0.1897752,84931.0,84930.0,0.06578943]
[1740610256138,0.1907752,84931.0,84930.0,0.03588102]
[1740610256337,0.1887752,84931.0,84930.0,0.02888102]
[1740610257873,0.1877752,84931.0,84930.0,0.02188102]
[1740610258417,0.1897752,84931.0,84930.0,0.03588102]
[1740610258587,0.1897752,84931.0,84930.0,0.02888102]
[1740610258799,0.1907752,84931.0,84930.0,0.03588102]
[1740610259158,0.1907752,84931.0,84930.0,0.07279536]
[1740610259364,0.1907752,84931.0,84930.0,0.03588102]
[1740610260689,0.1907752,84931.0,84930.0,0.02938765]
[1740610261614,0.1897752,84931.0,84930.0,0.04102765]
[1740610261775,0.1887752,84931.0,84930.0,0.03402765]
[1740610261978,0.1897752,84931.0,84930.0,0.04102765]
[1740610262185,0.1897752,84931.0,84930.0,0.03402765]
[1740610262693,0.1907752,84931.0,84930.0,0.04102765]
[1740610262872,0.1887752,84931.0,84930.0,0.02702765]
[1740610263065,0.1897752,84931.0,84930.0,0.03402765]
[1740610263523,0.1897752,84931.0,84930.0,0.02238765]
[1740610263723,0.1907752,84931.0,84930.0,0.0148468]
[1740610264787,0.01160174,84931.0,84930.0,0.0148468]
[1740610264999,0.18821474,84931.0,84930.0,0.0078468]
[1740610265193,0.176613,84931.0,84930.0,0.0078468]
[1740610265398,0.18635438,84931.0,84930.0,0.0078468]
[1740610266355,0.18735438,84931.0,84930.0,0.0148468]
[1740610266975,0.18635438,84931.0,84930.0,0.0078468]
[1740610267368,0.18735438,84931.0,84930.0,0.0148468]
[1740610267768,0.18635438,84931.0,84930.0,0.0078468]
[1740610268229,0.18735438,84931.0,84930.0,0.0148468]
[1740610269653,0.18635438,84931.0,84930.0,0.0078468]
[1740610270003,0.18735438,84931.0,84930.0,0.0148468]
[1740610272794,0.18735438,84931.0,84930.0,0.02133559]
[1740610273591,0.18635438,84931.0,84930.0,0.01433559]
[1740610273767,0.18735438,84931.0,84930.0,0.02133559]
[1740610273970,0.18735438,84931.0,84930.0,0.03297559]
[1740610274576,0.18635438,84931.0,84930.0,0.02597559]
[1740610274982,0.18735438,84931.0,84930.0,0.03297559]
[1740610275411,0.00974138,84931.0,84930.0,0.43645624]
[1740610275641,0.00974138,84931.0,84930.0,0.63107224]
[1740610275823,0.02186479,84932.0,84931.0,0.194613]
[1740610276188,0.0004234,84934.0,84933.0,0.194609]
[1740610276362,0.0004234,84934.0,84933.0,0.24606184]
[1740610276769,0.02744105,84934.0,84933.0,0.25770184]
[1740610277843,0.02744105,84934.0,84933.0,0.26470184]
[1740610278465,0.02744105,84934.0,84933.0,0.25770184]
[1740610278649,0.02744105,84934.0,84933.0,0.22078985]
[1740610278855,0.02744105,84934.0,84933.0,0.22778985]
[1740610279037,0.02744105,84934.0,84933.0,0.23815182]
[1740610279439,0.02744105,84934.0,84933.0,1.11325182]
[1740610280306,0.02744105,84934.0,84933.0,1.10625182]
[1740610280734,0.02744105,84934.0,84933.0,1.11325182]
[1740610281888,0.02744105,84934.0,84933.0,1.15013533]
[1740610282558,0.02744105,84934.0,84933.0,1.14313533]
[1740610283916,0.02744105,84934.0,84933.0,1.10625182]
[1740610284110,0.02744105,84934.0,84933.0,1.11325182]
[1740610285428,0.02744105,84934.0,84933.0,1.15012232]
[1740610286696,0.02744105,84934.0,84933.0,0.95551332]
[1740610286915,0.02744105,84934.0,84933.0,1.13212232]
[1740610287728,0.02744105,84934.0,84933.0,1.15012232]
[1740610288133,0.02744105,84934.0,84933.0,1.14312232]
[1740610288570,0.02744105,84934.0,84933.0,1.15012232]
[1740610289091,0.235448,84945.0,84934.0,0.018]
[1740610289239,4.065e-05,84940.0,84935.0,0.01454085]
[1740610289435,0.17663765,84940.0,84935.0,0.01454085]
[1740610289641,4.065e-05,84940.0,84935.0,0.01454085]
[1740610289825,0.17663565,84940.0,84935.0,0.01454085]
[1740610290026,0.20281665,84940.0,84935.0,0.01454085]
[1740610290805,0.20281665,84940.0,84937.0,0.01454085]
[1740610291420,0.20281665,84940.0,84939.0,0.01454085]
[1740610291721,0.20281665,84940.0,84939.0,0.03137677]
[1740610291912,0.20281665,84940.0,84939.0,0.03037677]
[1740610292771,0.20381665,84940.0,84939.0,0.03737677]
[1740610293606,0.20424005,84940.0,84939.0,0.03737677]
[1740610293802,0.02764505,84940.0,84939.0,0.03737677]
[1740610294006,0.20424005,84940.0,84939.0,0.03737677]
[1740610294439,0.02764505,84940.0,84939.0,0.04897677]
[1740610294598,0.02664505,84940.0,84939.0,0.04197677]
[1740610294800,0.235444,84946.0,84939.0,0.04197677]
[1740610295037,0.001,84940.0,84939.0,0.04897677]
[1740610295313,0.02822731,84940.0,84939.0,0.04897677]
[1740610295514,0.00789602,84940.0,84939.0,0.02514085]
[1740610295715,0.176586,84944.0,84939.0,0.02514085]
[1740610295909,0.00889602,84940.0,84939.0,0.03214085]
[1740610296130,0.001,84940.0,84939.0,0.03214085]
[1740610296335,0.00889602,84940.0,84939.0,0.03214085]
[1740610296793,0.00789602,84940.0,84939.0,0.02514085]
[1740610296995,0.00789602,84940.0,84939.0,0.04189019]
[1740610297165,0.176587,84944.0,84939.0,0.36919019]
[1740610297371,0.00789602,84940.0,84939.0,0.36919019]
[1740610297570,0.176589,84943.0,84939.0,0.36919019]
[1740610297748,0.00789602,84940.0,84939.0,0.36919019]
[1740610297944,0.02648385,84940.0,84939.0,0.36919019]
[1740610298149,0.176588,84944.0,84939.0,0.36919019]
[1740610298377,0.00789602,84940.0,84939.0,0.37619019]
[1740610298773,0.176588,84944.0,84939.0,0.36919019]
[1740610299125,0.001,84940.0,84939.0,0.37619019]
[1740610299672,0.176588,84944.0,84941.0,0.01454085]
[1740610300060,0.18448602,84943.0,84941.0,0.01454085]
[1740610300259,0.03519755,84943.0,84941.0,0.01454085]
[1740610300657,0.03519755,84943.0,84942.0,0.01674934]
[1740610300879,0.21178655,84943.0,84942.0,0.02834934]
[1740610301217,0.29638655,84943.0,84942.0,0.01674934]
[1740610301996,0.29638655,84943.0,84942.0,0.00644184]
[1740610302816,0.29738655,84943.0,84942.0,0.01344184]
[1740610303134,0.176613,84931.0,84930.0,0.0008468]
[1740610303573,0.002,84920.0,84910.0,0.0116]
[1740610303774,0.235531,84915.0,84910.0,0.0116]
[1740610304069,0.176655,84911.0,84910.0,0.0116]
[1740610304784,0.176655,84911.0,84908.0,0.3273]
[1740610304785,0.176659,84909.0,84908.0,0.3273]
[1740610304984,0.176659,84909.0,84908.0,0.3418815]
[1740610305189,0.18459319,84909.0,84908.0,0.3418815]
[1740610306636,0.18559319,84909.0,84908.0,0.3418815]
[1740610307595,0.00893419,84909.0,84908.0,0.3418815]
[1740610308229,0.18559319,84909.0,84908.0,0.3418815]
[1740610308784,0.18459319,84909.0,84908.0,0.3418815]
[1740610308962,0.18559319,84909.0,84908.0,0.3418815]
[1740610309587,0.18459319,84909.0,84908.0,0.3418815]
[1740610309931,0.00893419,84909.0,84908.0,0.3418815]
[1740610310937,0.01764661,84909.0,84908.0,0.3418815]
[1740610311364,0.01664661,84909.0,84908.0,0.3418815]
[1740610311761,0.01764661,84909.0,84908.0,0.3418815]
[1740610312571,0.19430561,84909.0,84908.0,0.3418815]
[1740610312952,0.19330561,84909.0,84908.0,0.3418815]
[1740610313149,0.19430561,84909.0,84908.0,0.3418815]
[1740610313568,0.01764661,84909.0,84908.0,0.3418815]
[1740610315517,0.19430561,84909.0,84908.0,0.3418815]
[1740610315715,0.01764661,84909.0,84908.0,0.3418815]
[1740610316513,0.01764661,84909.0,84908.0,0.3483167]
[1740610316736,0.01664661,84909.0,84908.0,0.3483167]
[1740610317978,0.19330561,84909.0,84908.0,0.3483167]
[1740610318181,0.01664661,84909.0,84908.0,0.3483167]
[1740610318350,0.01764661,84909.0,84908.0,0.3483167]
[1740610318853,0.01664661,84909.0,84908.0,0.3483167]
[1740610319002,0.19430561,84909.0,84908.0,0.3483167]
[1740610320241,0.19430561,84909.0,84908.0,0.3491635]
[1740610320976,0.01764661,84909.0,84908.0,0.3491635]
[1740610321478,0.01664661,84909.0,84908.0,0.3607635]
[1740610321772,0.01764661,84909.0,84908.0,0.3617635]
[1740610321920,0.01509444,84909.0,84908.0,0.3617635]
[1740610323791,0.19175344,84909.0,84908.0,0.3617635]
[1740610325338,0.19075344,84909.0,84908.0,0.3607635]
[1740610327142,0.19175344,84909.0,84908.0,0.3617635]
[1740610328379,0.19175344,84909.0,84908.0,0.3501635]
[1740610328850,0.01509444,84909.0,84908.0,0.3501635]
[1740610330457,0.01409444,84909.0,84908.0,0.3491635]
[1740610330702,0.00871242,84909.0,84908.0,0.3491635]
[1740610330902,0.00971242,84909.0,84908.0,0.3561635]
[1740610331111,0.01507802,84909.0,84908.0,0.3561635]
[1740610331483,0.00971242,84909.0,84908.0,0.3561635]
[1740610331685,0.01507802,84909.0,84908.0,0.39297796]
[1740610331927,0.01507802,84909.0,84908.0,0.3561635]
[1740610332221,0.01507802,84909.0,84908.0,0.39397924]
[1740610332222,0.01607802,84909.0,84908.0,0.39397924]
[1740610332425,0.01507802,84909.0,84908.0,0.3617635]
[1740610332601,0.01507802,84909.0,84908.0,0.39857954]
[1740610333033,0.01507802,84909.0,84908.0,0.3617635]
[1740610333205,0.01507802,84909.0,84908.0,0.39859124]
[1740610333406,0.00971242,84909.0,84908.0,0.39859124]
[1740610333683,0.001,84909.0,84908.0,0.40559124]
[1740610333829,0.001,84909.0,84908.0,0.40459124]
[1740610334039,0.001,84909.0,84908.0,0.39759124]
[1740610334243,0.003,84909.0,84908.0,0.40559124]
[1740610334647,0.002,84909.0,84908.0,0.40459124]
[1740610335171,0.003,84909.0,84908.0,0.40559124]
[1740610335541,0.001,84909.0,84908.0,0.39859124]
[1740610336107,0.002,84909.0,84908.0,0.40559124]
[1740610337042,0.235537,84913.0,84909.0,0.01454085]
[1740610337318,0.002,84917.0,84911.0,0.01354085]
[1740610337489,0.176653,84912.0,84911.0,0.01254085]
[1740610337689,0.002,84917.0,84911.0,0.03690743]
[1740610337908,0.002,84917.0,84909.0,0.03690743]
[1740610338102,0.002,84917.0,84910.0,0.03690743]
[1740610338301,0.002,84916.0,84911.0,0.0064352]
[1740610338504,0.176653,84912.0,84911.0,0.0064352]
[1740610338805,0.176653,84912.0,84911.0,0.04334777]
[1740610339513,0.176653,84912.0,84911.0,0.05688862]
[1740610339866,0.177651,84913.0,84912.0,0.01354085]
[1740610340068,0.177651,84913.0,84912.0,0.05045342]
[1740610340273,0.176651,84913.0,84912.0,0.05045342]
[1740610340475,0.176651,84913.0,84912.0,0.04945342]
[1740610340679,0.176651,84913.0,84912.0,0.04845342]
[1740610340880,0.176651,84913.0,84912.0,0.03691257]
[1740610341119,0.177651,84913.0,84912.0,0.04391257]
[1740610341547,0.178651,84913.0,84912.0,0.04691257]
[1740610342361,0.177651,84913.0,84912.0,0.04391257]
[1740610342557,0.177651,84913.0,84912.0,0.03691257]
[1740610342558,0.178651,84913.0,84912.0,0.03691257]
[1740610342759,0.178651,84913.0,84912.0,0.007]
[1740610343059,0.178659,84909.0,84908.0,0.32818745]
[1740610343262,0.178659,84909.0,84908.0,0.37665932]
[1740610344073,0.178659,84909.0,84908.0,0.36509932]
[1740610344293,0.178659,84909.0,84908.0,0.37665932]
[1740610344692,0.178659,84909.0,84908.0,0.04935932]
[1740610345519,0.178659,84909.0,84908.0,0.06335932]
[1740610345866,0.178659,84909.0,84908.0,0.04935932]
[1740610346066,0.178659,84909.0,84908.0,0.05635932]
[1740610347055,0.0108035,84909.0,84908.0,0.04935932]
[1740610347257,0.0108035,84909.0,84908.0,0.05635932]
[1740610347499,0.0118035,84909.0,84908.0,0.06335932]
[1740610347947,0.0108035,84909.0,84908.0,0.05635932]
[1740610348371,0.0098035,84909.0,84908.0,0.06335932]
[1740610348485,0.001,84909.0,84908.0,0.07790017]
[1740610349102,0.001,84909.0,84908.0,0.07090017]
[1740610349556,0.001,84909.0,84908.0,0.07790017]
[1740610350628,0.001,84909.0,84908.0,0.40520017]
[1740610352378,0.001,84909.0,84908.0,0.39820017]
[1740610352609,0.0004235,84911.0,84909.0,0.01454085]
[1740610352747,0.0004235,84911.0,84910.0,0.05145272]
[1740610353938,0.0004235,84911.0,84910.0,0.05045272]
[1740610354188,0.0004235,84911.0,84910.0,0.05745272]
[1740610355001,0.0014235,84911.0,84910.0,0.06345272]
[1740610361226,0.12365495,84920.0,84910.0,0.06345272]
[1740610361430,0.176643,84917.0,84911.0,0.05045272]
[1740610361625,0.176643,84917.0,84910.0,0.013]
[1740610361808,0.176643,84917.0,84911.0,0.01454085]
[1740610362009,0.0059894,84927.0,84911.0,0.01454085]
[1740610362211,0.176641,84918.0,84911.0,0.01454085]
[1740610362412,0.236515,84920.0,84911.0,0.01454085]
[1740610362658,0.001,84920.0,84911.0,0.01454085]
[1740610363094,0.17664,84919.0,84911.0,0.01454085]
[1740610363306,0.176641,84918.0,84911.0,0.01454085]
[1740610363639,0.176639,84919.0,84909.0,0.01454085]
[1740610363839,0.176641,84918.0,84909.0,0.01454085]
[1740610364081,0.176641,84918.0,84911.0,0.007]
[1740610364461,0.176641,84918.0,84913.0,0.01454085]
[1740610364662,0.235508,84923.0,84913.0,0.01454085]
[1740610364862,0.235514,84921.0,84913.0,0.01454085]
[1740610365072,0.235508,84923.0,84913.0,0.01454085]
[1740610365415,0.176641,84918.0,84913.0,0.01454085]
[1740610365690,0.005,84926.0,84913.0,0.01454085]
[1740610366505,0.005,84926.0,84913.0,0.02154085]
[1740610366716,0.001,84923.0,84913.0,0.02854085]
[1740610366923,0.001,84923.0,84915.0,0.01454085]
[1740610367223,0.001,84923.0,84914.0,0.01454085]
[1740610367967,0.001,84923.0,84916.0,0.01454085]
[1740610368375,0.005,84926.0,84914.0,0.01454085]
[1740610368613,0.005,84926.0,84916.0,0.01454085]
[1740610368832,0.001,84926.0,84916.0,0.01454085]
[1740610369350,0.176639,84919.0,84914.0,0.01454085]
[1740610369635,0.176639,84919.0,84916.0,0.007]
[1740610369835,0.235504,84924.0,84914.0,0.007]
[1740610370019,0.235504,84924.0,84916.0,0.007]
[1740610370405,0.235504,84924.0,84913.0,0.01454085]
[1740610370942,0.235504,84924.0,84915.0,0.01454085]
[1740610371234,0.235504,84924.0,84913.0,0.01454085]
[1740610371541,0.235504,84924.0,84915.0,0.01454085]
[1740610371768,0.235504,84924.0,84916.0,0.04390799]
[1740610371900,0.235504,84924.0,84917.0,0.03690799]
[1740610372455,0.235504,84924.0,84917.0,0.01156]
[1740610372660,0.236504,84924.0,84918.0,0.03690799]
[1740610372856,0.237504,84924.0,84918.0,0.03690799]
[1740610373160,0.0341,84928.0,84917.0,0.01156]
[1740610373539,0.002,84924.0,84917.0,0.02556]
[1740610374713,0.001,84924.0,84918.0,0.10629896]
[1740610374995,0.001,84924.0,84918.0,0.11329896]
[1740610375211,0.001,84924.0,84918.0,0.10629896]
[1740610375378,0.0351,84928.0,84918.0,0.10629896]
[1740610375715,0.001,84924.0,84918.0,0.10629896]
[1740610375859,0.0341,84928.0,84918.0,0.10629896]
[1740610376278,0.001,84924.0,84918.0,0.11329896]
[1740610376682,0.002,84924.0,84918.0,0.12029896]
[1740610376849,0.001,84924.0,84918.0,0.11329896]
[1740610377050,0.001,84924.0,84918.0,0.007]
[1740610378002,0.0341,84928.0,84917.0,0.01156]
[1740610378412,0.0351,84928.0,84918.0,0.007]
[1740610378573,0.0341,84928.0,84917.0,0.01156]
[1740610378995,0.001,84924.0,84918.0,0.014]
[1740610379174,0.001,84924.0,84918.0,0.007]
[1740610379914,0.0361,84928.0,84918.0,0.007]
[1740610380319,0.0351,84928.0,84918.0,0.007]
[1740610380743,0.001,84924.0,84918.0,0.014]
[1740610381301,0.002,84924.0,84918.0,0.021]
[1740610381498,0.001,84924.0,84918.0,0.007]
[1740610382306,0.0341,84928.0,84917.0,0.01156]
[1740610382708,0.0351,84928.0,84918.0,0.007]
[1740610382890,0.0351,84928.0,84918.0,0.014]
[1740610383094,0.001,84924.0,84918.0,0.007]
[1740610383280,0.001,84924.0,84919.0,0.03690957]
[1740610383479,0.002,84924.0,84919.0,0.03690957]
[1740610384306,0.0341,84928.0,84919.0,0.03690957]
[1740610384626,0.0341,84928.0,84917.0,0.01156]
[1740610384627,0.235505,84924.0,84920.0,0.03690957]
[1740610384819,0.176638,84919.0,84918.0,0.03690957]
[1740610385014,0.17664,84918.0,84917.0,0.01156]
[1740610385221,0.17664,84918.0,84917.0,0.04847138]
[1740610386031,0.17664,84918.0,84917.0,0.03691138]
[1740610386275,0.17764,84918.0,84917.0,0.01856]
[1740610386429,0.17764,84918.0,84917.0,0.007]
[1740610386757,0.0835,84918.0,84907.0,0.09544172]
[1740610387034,0.176661,84908.0,84907.0,0.09544172]
[1740610387225,0.176672,84903.0,84902.0,0.01538785]
[1740610387378,0.0815,84904.0,84898.0,0.01156]
[1740610387584,0.235562,84903.0,84895.0,0.01156]
[1740610387776,0.0815,84904.0,84886.0,0.3189475]
[1740610387977,0.0815,84904.0,84894.0,0.01156]
[1740610387978,0.176688,84895.0,84894.0,0.01156]
[1740610389211,0.0825,84904.0,84887.0,0.01454085]
[1740610389427,0.00934469,84928.0,84917.0,0.196643]
[1740610389775,0.0004234,84928.0,84917.0,1.7691155]
[1740610389988,0.0004234,84928.0,84927.0,0.215622]
[1740610390187,0.0004234,84928.0,84927.0,0.30861104]
[1740610390315,0.0004234,84928.0,84927.0,0.43708604]
[1740610391663,0.0004234,84928.0,84927.0,1.28483354]
[1740610392026,0.0004234,84928.0,84927.0,1.29635354]
[1740610392228,0.0004234,84928.0,84927.0,1.30335354]
[1740610392229,0.0014234,84928.0,84927.0,1.30335354]
[1740610392968,0.0014234,84928.0,84927.0,1.30235354]
[1740610393366,0.15549585,84930.0,84929.0,0.195618]
[1740610393568,0.15549585,84930.0,84929.0,0.247023]
[1740610393784,0.15549585,84930.0,84929.0,0.258543]
[1740610394005,0.0050859,84975.0,84974.0,0.21006485]
[1740610394182,0.0050859,84975.0,84974.0,1.12684389]
[1740610394385,0.02039895,84976.0,84975.0,0.05154085]
[1740610394616,0.0004229,84987.0,84986.0,0.72803985]
[1740610394833,0.0004229,84987.0,84986.0,1.6306515]
[1740610394974,0.0004235,84996.0,84991.0,0.212489]
[1740610395171,0.002,85042.0,84999.0,0.712472]
[1740610395375,0.002,85044.0,84999.0,1.59376035]
[1740610395582,0.04940703,85000.0,84999.0,1.63029912]
[1740610395776,0.002,85044.0,84999.0,1.63029912]
[1740610395777,0.002,85044.0,85002.0,0.212466]
[1740610396034,0.00050493,85003.0,85002.0,0.26419188]
[1740610396233,0.00050493,85003.0,85002.0,0.26254562]
[1740610396401,0.003,85044.0,85008.0,0.711453]
[1740610396607,0.003,85050.0,85008.0,1.62928012]
[1740610396825,0.003,85052.0,85008.0,1.62928012]
[1740610397065,0.0331743,85041.0,85040.0,0.176387]
[1740610397269,0.0331743,85041.0,85040.0,1.1048411]
[1740610397490,0.0331743,85041.0,85040.0,2.63679749]
[1740610397636,0.003,85086.0,85066.0,0.235111]
[1740610397840,0.235002,85106.0,85068.0,0.56745341]
[1740610397841,0.00016132,85069.0,85068.0,0.56745341]
[1740610398038,0.00016132,85069.0,85068.0,1.13225341]
[1740610398264,0.00016132,85069.0,85068.0,1.46820091]
[1740610398807,6.251e-05,85069.0,85068.0,1.46820091]
[1740610399148,0.003,85107.0,85076.0,0.710312]
[1740610399376,0.003,85107.0,85076.0,0.72485285]
[1740610399576,0.0004234,85095.0,85076.0,0.72485285]
[1740610399979,0.0004234,85095.0,85094.0,0.017]
[1740610400181,0.00082952,85095.0,85094.0,1.30503658]
[1740610400338,0.00082952,85095.0,85094.0,1.29187191]
[1740610400545,0.00082952,85095.0,85094.0,1.30339191]
[1740610400759,0.00082952,85095.0,85094.0,0.92680835]
[1740610401182,0.00082952,85095.0,85094.0,0.91528835]
[1740610401405,0.00082952,85095.0,85094.0,1.30339191]
[1740610401781,0.00082952,85095.0,85094.0,1.77487191]
[1740610401984,0.00082952,85095.0,85094.0,1.42680835]
[1740610402300,0.00082952,85095.0,85094.0,1.40980835]
[1740610402707,0.00082952,85095.0,85094.0,0.007]
[1740610403048,0.00082952,85095.0,85094.0,0.01852]
[1740610403201,0.00082952,85095.0,85094.0,0.03306085]
[1740610403403,0.00082952,85095.0,85094.0,0.01852]
[1740610403583,0.00082952,85095.0,85094.0,0.02552]
[1740610403783,0.00623403,85095.0,85094.0,0.014]
[1740610403987,0.00082952,85095.0,85094.0,0.04006085]
[1740610404215,0.00082952,85095.0,85094.0,0.03306085]
[1740610405224,0.00082952,85095.0,85094.0,0.04006085]
[1740610405418,0.00082952,85095.0,85094.0,0.05170569]
[1740610405739,0.00082952,85095.0,85094.0,0.38765319]
[1740610405942,0.0032499,85107.0,85106.0,0.017]
[1740610406118,0.00337169,85107.0,85106.0,0.20779085]
[1740610406320,0.00859493,85107.0,85106.0,0.19079085]
[1740610406519,0.00337169,85107.0,85106.0,0.19079085]
[1740610406946,0.00337169,85107.0,85106.0,1.05753835]
[1740610407343,0.00337169,85107.0,85106.0,1.09288735]
[1740610407587,0.00337169,85107.0,85106.0,1.09293735]
[1740610407929,0.00337169,85107.0,85106.0,1.09993735]
[1740610410070,0.07460418,85136.0,85107.0,0.01454085]
[1740610410216,0.07450418,85136.0,85124.0,0.01454085]
[1740610410378,0.00525008,85135.0,85126.0,0.01454085]
[1740610410585,0.07450418,85136.0,85126.0,0.01454085]
[1740610411356,0.02916441,85136.0,85126.0,0.01454085]
[1740610411556,0.02916441,85136.0,85131.0,0.01454085]
[1740610411699,0.176166,85147.0,85131.0,0.01454085]
[1740610411940,0.0087941,85188.0,85149.0,0.20770185]
[1740610412151,0.02889072,85159.0,85149.0,0.2173458]
[1740610412380,0.0064043,85150.0,85149.0,0.20770185]
[1740610412583,0.0064043,85150.0,85149.0,0.01454085]
[1740610412785,0.1411553,85161.0,85149.0,0.017885]
[1740610413021,0.176143,85158.0,85149.0,0.017885]
[1740610413293,0.0777,85150.0,85149.0,0.00040612]
[1740610413473,0.0806,85150.0,85122.0,0.035342]
[1740610413641,0.176177,85142.0,85139.0,0.01148]
[1740610414002,0.234846,85145.0,85139.0,0.01148]
[1740610414201,0.176174,85144.0,85139.0,0.01148]
[1740610414355,0.0004229,85147.0,85139.0,0.01148]
[1740610414558,0.0003229,85147.0,85139.0,0.01148]
[1740610414956,0.0003229,85147.0,85139.0,0.007]
[1740610415180,0.234891,85146.0,85140.0,0.01148]
[1740610415383,0.0003229,85147.0,85140.0,0.01148]
[1740610415822,0.17618,85140.0,85139.0,0.01405]
[1740610416021,0.17918,85140.0,85139.0,0.00257]
[1740610416214,0.17918,85140.0,85139.0,0.00957]
[1740610416596,0.003,85137.0,85127.0,0.01454085]
[1740610416794,0.234918,85136.0,85127.0,0.01454085]
[1740610417209,0.176183,85139.0,85127.0,0.01454085]
[1740610417411,0.003,85137.0,85127.0,0.01454085]
[1740610417913,0.176184,85138.0,85127.0,0.01454085]
[1740610418112,0.003,85137.0,85127.0,0.01459085]
[1740610418318,0.001,85139.0,85128.0,0.23494]
[1740610418482,0.001,85139.0,85138.0,0.19072485]
[1740610418968,0.001,85139.0,85138.0,0.18972485]
[1740610419117,0.0003229,85147.0,85139.0,0.01454085]
[1740610419321,0.0003229,85147.0,85136.0,0.01454085]
[1740610419533,0.001,85139.0,85138.0,0.19072485]
[1740610420712,0.0003229,85147.0,85138.0,0.01454085]
[1740610420955,0.0003229,85147.0,85146.0,0.18970785]
[1740610421132,0.0003229,85147.0,85146.0,0.18870785]
[1740610422023,0.0013229,85147.0,85146.0,0.18870785]
[1740610422665,0.0003229,85147.0,85146.0,0.18870785]
[1740610422847,0.02919271,85160.0,85147.0,0.01454085]
[1740610423044,0.176116,85171.0,85147.0,0.01454085]
[1740610423247,0.176118,85171.0,85155.0,0.176147]
[1740610423592,0.00877971,85174.0,85153.0,0.23487]
[1740610423593,0.00877971,85174.0,85156.0,0.01148]
[1740610423741,0.176122,85169.0,85156.0,0.01148]
[1740610423943,0.003,85177.0,85147.0,0.01454085]
[1740610423944,0.02,85210.0,85157.0,0.01454085]
[1740610424139,0.003,85182.0,85170.0,0.176118]
[1740610424347,0.003,85179.0,85170.0,0.176118]
[1740610424710,0.003,85179.0,85153.0,0.5478]
[1740610424711,0.0087001,85175.0,85167.0,0.01148]